bitfinex/quotes_SOLUSD_20241225
["timestamp","ask_amount","ask_price","bid_price","bid_amount"]
[1735100797509,9.68271505,199.39,199.31,23.776884]
[1735100798515,9.68271505,199.39,199.31,24.52923675]
[1735100798708,7.5751,199.41,199.32,9.68271505]
[1735100798910,7.5751,199.41,199.35,23.776884]
[1735100799130,17.25781505,199.41,199.34,9.68271505]
[1735100799304,9.68271505,199.39,199.31,33.45959905]
[1735100804633,17.25781505,199.41,199.33,9.68271505]
[1735100805436,7.5751,199.41,199.33,9.68271505]
[1735100816551,9.68271505,199.4,199.33,9.68271505]
[1735100817913,7.5751,199.41,199.35,9.80820505]
[1735100818118,7.7524,199.47,199.39,9.68271505]
[1735100819231,9.68271505,199.46,199.39,9.68271505]
[1735100819644,9.68271505,199.46,199.38,0.12549]
[1735100823663,7.7524,199.47,199.39,9.68271505]
[1735100826626,7.7524,199.47,199.43,9.68271505]
[1735100826828,17.29701505,199.51,199.43,9.68271505]
[1735100827628,7.6143,199.51,199.46,9.68271505]
[1735100828227,7.6143,199.51,199.48,9.68271505]
[1735100828417,17.54731505,199.56,199.48,9.68271505]
[1735100828624,7.8646,199.56,199.5,9.68271505]
[1735100829946,7.8646,199.56,199.48,23.902374]
[1735100830141,7.8646,199.56,199.5,23.776884]
[1735100832551,7.8646,199.56,199.51,9.68271505]
[1735100834453,17.54731505,199.61,199.54,23.776884]
[1735100835951,17.54731505,199.61,199.53,9.68271505]
[1735100837466,17.54731505,199.61,199.52,33.45959905]
[1735100838168,9.68271505,199.59,199.51,0.75158918]
[1735100838347,9.68271505,199.57,199.49,9.68271505]
[1735100838532,9.68271505,199.57,199.47,9.68271505]
[1735100839268,9.68271505,199.57,199.48,0.12549]
[1735100839639,9.68271505,199.57,199.48,23.902374]
[1735100839969,9.68271505,199.57,199.48,23.776884]
[1735100840150,9.68271505,199.55,199.47,23.776884]
[1735100840837,9.68271505,199.55,199.46,9.68271505]
[1735100841344,9.68271505,199.53,199.46,9.68271505]
[1735100846217,8.018,199.52,199.43,33.45959905]
[1735100848577,9.68271505,199.51,199.42,1.97431374]
[1735100848781,9.68271505,199.51,199.42,9.68271505]
[1735100851590,9.68271505,199.49,199.4,0.75200683]
[1735100851795,9.68271505,199.47,199.39,23.776884]
[1735100852386,9.68271505,199.47,199.38,9.68271505]
[1735100852902,8.0235,199.46,199.38,9.68271505]
[1735100855095,9.68271505,199.45,199.38,9.68271505]
[1735100855392,9.68271505,199.45,199.37,23.776884]
[1735100855784,9.68271505,199.45,199.35,23.776884]
[1735100855987,9.68271505,199.43,199.32,8.60448339]
[1735100856204,9.68271505,199.43,199.31,17.53498285]
[1735100856205,1.541,199.38,199.31,17.53498285]
[1735100856598,8.0235,199.38,199.31,17.53498285]
[1735100857074,8.0235,199.38,199.29,9.68271505]
[1735100857075,9.68271505,199.37,199.29,9.68271505]
[1735100857463,9.68271505,199.35,199.27,9.68271505]
[1735100857699,9.68271505,199.33,199.26,7.8522678]
[1735100857905,9.68271505,199.33,199.25,9.68271505]
[1735100861470,17.70621505,199.38,199.31,9.68271505]
[1735100863095,8.0235,199.38,199.31,9.68271505]
[1735100865301,8.0235,199.38,199.33,9.68271505]
[1735100872309,8.0235,199.38,199.31,9.68271505]
[1735100875282,9.68271505,199.37,199.29,9.68271505]
[1735100876009,8.0235,199.38,199.33,9.68271505]
[1735100878590,8.0235,199.38,199.32,9.68271505]
[1735100878907,8.0235,199.38,199.31,9.68271505]
[1735100879413,8.0235,199.38,199.33,9.68271505]
[1735100879914,8.1615,199.43,199.36,23.776884]
[1735100880086,8.1615,199.43,199.37,9.68271505]
[1735100881997,8.1615,199.43,199.39,9.68271505]
[1735100882305,9.68271505,199.47,199.39,9.68271505]
[1735100886288,8.1615,199.48,199.41,9.68271505]
[1735100886703,1.5867,199.48,199.43,9.68271505]
[1735100886905,9.68271505,199.5,199.43,9.68271505]
[1735100888416,9.68271505,199.48,199.4,23.776884]
[1735100888624,9.68271505,199.48,199.4,33.45959905]
[1735100889625,9.68271505,199.48,199.4,35.48165959]
[1735100890104,9.68271505,199.48,199.4,33.45959905]
[1735100893298,9.68271505,199.48,199.39,2.3433386]
[1735100893503,8.1615,199.53,199.38,23.776884]
[1735100893504,9.68271505,199.46,199.38,23.776884]
[1735100893704,9.68271505,199.46,199.37,9.68271505]
[1735100894725,9.68271505,199.4,199.35,0.752162]
[1735100894924,9.68271505,199.37,199.32,7.8522678]
[1735100895621,9.68271505,199.37,199.3,9.68271505]
[1735100896397,9.68271505,199.37,199.3,23.776884]
[1735100897119,9.68271505,199.37,199.3,33.45959905]
[1735100897329,9.68271505,199.37,199.3,34.21199427]
[1735100897624,9.68271505,199.37,199.3,33.45959905]
[1735100898699,9.68271505,199.42,199.34,9.80820505]
[1735100898902,11.28721505,199.45,199.36,9.68271505]
[1735100899711,11.28721505,199.45,199.37,23.776884]
[1735100902803,5.0856,199.46,199.39,23.776884]
[1735100903017,9.68271505,199.47,199.39,23.776884]
[1735100908130,9.68271505,199.45,199.35,10.61332809]
[1735100908317,9.68271505,199.45,199.36,9.68271505]
[1735100909741,9.68271505,199.45,199.35,2.76106029]
[1735100909916,9.68271505,199.43,199.36,43.776884]
[1735100910222,9.68271505,199.43,199.36,23.776884]
[1735100911831,9.68271505,199.45,199.36,23.776884]
[1735100914038,9.68271505,199.45,199.37,9.68271505]
[1735100916534,6.3239,199.51,199.4,20.0]
[1735100916706,6.3239,199.51,199.43,9.68271505]
[1735100916918,9.68271505,199.53,199.44,23.776884]
[1735100917653,9.68271505,199.53,199.45,9.68271505]
[1735100918360,1.501,199.54,199.45,9.68271505]
[1735100918517,9.68271505,199.54,199.47,9.68271505]
[1735100918726,6.3239,199.56,199.47,9.68271505]
[1735100918727,9.68271505,199.56,199.48,23.776884]
[1735100918915,9.68271505,199.56,199.49,9.68271505]
[1735100919727,9.68271505,199.54,199.46,23.776884]
[1735100919930,9.68271505,199.54,199.46,34.2114572]
[1735100920853,9.68271505,199.56,199.48,9.68271505]
[1735100921027,9.68271505,199.58,199.5,9.68271505]
[1735100921715,9.68271505,199.56,199.48,10.43441428]
[1735100922327,9.68271505,199.56,199.48,0.75169923]
[1735100922529,9.68271505,199.56,199.49,9.68271505]
[1735100923944,9.68271505,199.56,199.48,23.776884]
[1735100924957,9.68271505,199.54,199.45,7.8421]
[1735100925179,9.68271505,199.54,199.45,1.6025]
[1735100925954,20.0,199.58,199.48,9.68271505]
[1735100926253,9.68271505,199.56,199.48,9.68271505]
[1735100928155,9.68271505,199.54,199.46,34.33696426]
[1735100929860,1.5315,199.59,199.46,34.33696426]
[1735100929861,9.68271505,199.56,199.46,34.33696426]
[1735100933037,9.68271505,199.58,199.49,23.776884]
[1735100933237,9.68271505,199.58,199.49,24.52854391]
[1735100933942,9.68271505,199.58,199.5,9.68271505]
[1735100936460,6.4368,199.61,199.48,33.45959905]
[1735100936461,9.68271505,199.56,199.48,33.45959905]
[1735100938067,9.68271505,199.56,199.5,23.776884]
[1735100938244,9.68271505,199.58,199.5,33.45959905]
[1735100941169,9.68271505,199.58,199.5,45.99079905]
[1735100942055,9.68271505,199.6,199.53,23.776884]
[1735100942863,11.6308,199.69,199.55,23.776884]
[1735100943073,9.68271505,199.64,199.57,23.776884]
[1735100943369,9.68271505,199.66,199.58,9.68271505]
[1735100947980,9.68271505,199.66,199.59,23.776884]
[1735100955774,9.68271505,199.66,199.58,23.902374]
[1735100955960,9.68271505,199.66,199.58,33.58508905]
[1735100956576,80.8,199.74,199.61,20.0]
[1735100956781,9.68271505,199.71,199.61,20.75125989]
[1735100957080,9.68271505,199.73,199.65,23.776884]
[1735100957876,11.5753,199.78,199.66,9.68271505]
[1735100958084,9.68271505,199.73,199.66,9.68271505]
[1735100958289,9.68271505,199.75,199.67,23.776884]
[1735100958456,9.68271505,199.75,199.67,25.439684]
[1735100959360,9.68271505,199.73,199.67,25.439684]
[1735100959873,9.68271505,199.73,199.67,1.6628]
[1735100962979,9.68271505,199.71,199.67,1.6628]
[1735100963284,9.68271505,199.71,199.64,15.90741505]
[1735100965789,10.0123,199.76,199.64,15.90741505]
[1735100965992,9.68271505,199.73,199.64,15.90741505]
[1735100966205,9.68271505,199.73,199.66,9.68271505]
[1735100968288,9.68271505,199.75,199.67,23.776884]
[1735100969867,9.68271505,199.75,199.66,9.68271505]
[1735100970186,9.68271505,199.73,199.66,9.68271505]
[1735100973179,82.4058,199.86,199.69,20.0]
[1735100973380,0.6348694,199.81,199.76,9.68271505]
[1735100975705,0.6348694,199.81,199.78,9.68271505]
[1735100975997,0.6348694,199.81,199.8,9.68271505]
[1735100976480,0.6348694,199.81,199.8,33.45959905]
[1735100976890,0.6348694,199.81,199.8,33.58508905]
[1735100977089,9.68271505,199.9,199.81,23.776884]
[1735100977292,18.1929,199.96,199.84,9.68271505]
[1735100977476,9.68271505,199.93,199.85,33.45959905]
[1735100977673,80.8,199.99,199.87,9.68271505]
[1735100977877,8.8257694,200.01,199.91,9.68271505]
[1735100978096,9.68271505,199.98,199.91,9.68271505]
[1735100978283,9.68271505,199.97,199.89,9.68271505]
[1735100979612,8.8257694,200.01,199.9,9.68271505]
[1735100979900,9.68271505,199.98,199.9,9.68271505]
[1735100980081,9.68271505,199.96,199.88,16.21491505]
[1735100980281,9.68271505,199.96,199.89,9.68271505]
[1735100981809,9.68271505,199.99,199.91,9.68271505]
[1735100982186,0.6348694,200.01,199.94,9.68271505]
[1735100984292,0.6348694,200.01,199.95,9.68271505]
[1735100986905,0.6348694,200.01,199.9,0.75013448]
[1735100987086,9.68271505,199.94,199.83,6.1745]
[1735100987286,9.68271505,199.96,199.88,9.68271505]
[1735100987487,9.68271505,199.99,199.92,9.68271505]
[1735100988082,0.6348694,200.01,199.91,9.68271505]
[1735100988288,10.31758445,200.01,199.93,9.68271505]
[1735100989211,9.68271505,199.99,199.88,20.0]
[1735100989399,9.68271505,199.99,199.91,9.68271505]
[1735100991695,9.68271505,200.0,199.91,9.68271505]
[1735100992305,9.68271505,200.0,199.93,9.68271505]
[1735100996294,0.6348694,200.01,199.93,9.68271505]
[1735100997907,9.68271505,199.95,199.86,1.6633]
[1735100998100,9.68271505,199.94,199.86,1.6633]
[1735100998305,9.68271505,199.94,199.87,9.68271505]
[1735101000431,9.68271505,199.94,199.86,1.6633]
[1735101000743,10.0029,199.95,199.83,6.1745]
[1735101001036,20.0,199.95,199.88,9.68271505]
[1735101001196,20.0,199.97,199.9,9.68271505]
[1735101001401,9.68271505,199.98,199.9,9.68271505]
[1735101001711,10.6343694,200.01,199.94,9.68271505]
[1735101001712,0.6348694,200.01,199.94,9.68271505]
[1735101006527,0.6348694,200.01,199.94,16.03871505]
[1735101006716,0.6348694,200.01,199.96,9.68271505]
[1735101007330,0.6348694,200.01,199.98,9.68271505]
[1735101007914,0.6348694,200.01,200.0,9.68271505]
[1735101008319,9.682715,200.16,200.01,23.902374]
[1735101008524,9.68271505,200.13,200.05,9.68271505]
[1735101009237,18.2366,200.18,200.05,9.68271505]
[1735101009534,9.68271505,200.13,200.05,9.68271505]
[1735101010122,18.2366,200.18,200.01,36.401174]
[1735101010314,15.00744046,200.13,200.05,15.00744046]
[1735101011220,15.00744046,200.13,200.06,15.00744046]
[1735101012231,15.00744046,200.12,200.05,15.00744046]
[1735101012434,15.00744046,200.1,200.03,15.00744046]
[1735101013243,20.0,200.13,200.03,15.00744046]
[1735101013452,15.00744046,200.11,200.04,15.00744046]
[1735101013746,15.00744046,200.1,200.03,15.00744046]
[1735101013905,15.00744046,200.1,200.02,15.00744046]
[1735101014106,15.00744046,200.09,200.02,15.00744046]
[1735101014336,15.00744046,200.07,200.0,21.39084046]
[1735101018244,15.00744046,200.09,200.0,21.39084046]
[1735101021244,15.00744046,200.07,200.0,21.39084046]
[1735101021425,15.00744046,200.07,199.99,1.6535]
[1735101022119,15.00744046,200.06,199.99,1.6535]
[1735101023144,15.00744046,200.02,199.95,21.39084046]
[1735101024743,14.94726347,200.02,199.95,21.39084046]
[1735101024919,14.94726347,200.02,199.95,6.3834]
[1735101026554,23.902374,200.06,199.96,15.00744046]
[1735101026848,15.00744046,200.04,199.96,15.00744046]
[1735101029452,20.0,200.04,199.95,15.00744046]
[1735101029627,15.00744046,200.03,199.95,15.00744046]
[1735101032146,9.61464158,200.03,199.95,9.61464158]
[1735101032445,9.61464158,200.01,199.93,9.61464158]
[1735101036335,29.61464158,200.05,199.97,9.61464158]
[1735101037559,9.9964,200.08,199.97,9.61464158]
[1735101037739,9.61464158,200.05,199.97,9.61464158]
[1735101040060,9.9964,200.1,200.0,9.61464158]
[1735101040268,9.61464158,200.1,200.02,9.61464158]
[1735101043451,20.0,200.09,200.02,11.27394158]
[1735101045546,29.61464158,200.09,200.02,11.27394158]
[1735101045948,29.61464158,200.09,200.02,1.6593]
[1735101047951,20.0,200.1,200.02,1.6593]
[1735101048154,29.61464158,200.1,200.02,11.27394158]
[1735101052383,9.61464158,200.09,200.02,11.27394158]
[1735101054475,9.61464158,200.09,200.02,1.6593]
[1735101055076,9.61464158,200.07,200.02,1.6593]
[1735101056056,9.9958,200.09,199.98,9.61464158]
[1735101056257,9.9941,200.12,199.98,0.12549]
[1735101056444,9.9941,200.12,200.03,9.61464158]
[1735101056651,9.61464158,200.11,200.04,1.5824]
[1735101057462,9.61464158,200.12,200.05,9.61464158]
[1735101057981,9.61464158,200.11,200.04,17.28674158]
[1735101059769,9.61464158,200.11,200.04,7.6721]
[1735101059973,9.61464158,200.09,200.04,7.6721]
[1735101060350,9.61464158,200.1,200.04,7.6721]
[1735101062577,9.9926,200.15,200.04,17.28674158]
[1735101062956,9.61464158,200.12,200.04,17.28674158]
[1735101069483,9.61464158,200.12,200.05,9.61464158]
[1735101071409,20.0,200.15,200.05,9.61464158]
[1735101071565,9.61464158,200.12,200.06,23.776884]
[1735101074095,9.61464158,200.13,200.06,23.776884]
[1735101074266,0.6348694,200.2,200.07,23.776884]
[1735101074574,9.61464158,200.18,200.1,9.61464158]
[1735101074786,9.61464158,200.18,200.11,25.401684]
[1735101074993,9.61464158,200.18,200.11,35.01632558]
[1735101075577,9.61464158,200.18,200.11,25.401684]
[1735101075981,9.61464158,200.16,200.11,25.401684]
[1735101078709,9.61464158,200.15,200.11,25.401684]
[1735101079107,0.6348694,200.2,200.11,1.6248]
[1735101079286,9.61464158,200.13,200.05,11.23944158]
[1735101080318,9.9919,200.17,200.05,11.23944158]
[1735101080491,9.61464158,200.12,200.05,11.23944158]
[1735101080687,9.61464158,200.11,200.05,1.6248]
[1735101081706,9.61464158,200.06,200.0,1.6248]
[1735101081902,9.61464158,200.07,200.0,11.23944158]
[1735101082600,9.61464158,200.06,200.0,1.6248]
[1735101084487,9.61464158,200.07,200.0,11.23944158]
[1735101087515,9.61464158,200.08,200.0,11.23944158]
[1735101087807,9.61464158,200.07,200.0,1.6248]
[1735101088011,9.61464158,200.07,200.0,11.23944158]
[1735101089002,9.61464158,200.08,200.0,11.23944158]
[1735101089202,9.61464158,200.09,200.01,9.61464158]
[1735101089515,9.61464158,200.09,200.02,9.61464158]
[1735101092716,9.9935,200.13,200.02,9.61464158]
[1735101092906,9.61464158,200.11,200.03,9.61464158]
[1735101102729,9.61464158,200.11,200.01,23.776884]
[1735101102904,9.61464158,200.09,200.02,9.61464158]
[1735101105034,9.61464158,200.08,200.01,9.61464158]
[1735101106929,9.9943,200.12,200.02,9.61464158]
[1735101107320,9.61464158,200.09,200.02,9.61464158]
[1735101108335,9.61464158,200.08,200.01,33.39152558]
[1735101108636,9.61464158,200.06,200.0,1.6248]
[1735101108951,9.61464158,200.05,200.0,1.6248]
[1735101109610,9.61464158,200.06,200.0,1.6248]
[1735101110513,9.61464158,200.05,200.0,1.6248]
[1735101113549,9.61464158,200.06,200.0,1.6248]
[1735101113756,9.61464158,200.05,200.0,1.6248]
[1735101116045,9.61464158,200.06,200.0,1.6248]
[1735101117641,9.61464158,200.07,200.0,1.6248]
[1735101120452,9.61464158,200.05,200.0,1.6248]
[1735101120618,9.61464158,200.03,199.96,9.61464158]
[1735101121349,20.0,200.08,199.97,9.61464158]
[1735101121523,9.61464158,200.05,199.97,9.61464158]
[1735101122719,11.6267,200.1,200.01,9.61464158]
[1735101122916,9.9936,200.13,200.02,9.61464158]
[1735101123126,9.61464158,200.1,200.02,9.61464158]
[1735101123865,9.9936,200.13,200.03,9.61464158]
[1735101124169,9.61464158,200.11,200.03,11.21284158]
[1735101126755,9.61464158,200.1,200.03,11.21284158]
[1735101126956,9.61464158,200.09,200.03,1.5982]
[1735101128371,9.61464158,200.1,200.03,1.5982]
[1735101128728,9.61464158,200.08,200.03,1.5982]
[1735101129555,10.11849,200.14,200.03,1.5982]
[1735101129861,9.61464158,200.09,200.03,1.5982]
[1735101130352,10.11849,200.14,200.03,1.5982]
[1735101130534,9.61464158,200.1,200.03,1.5982]
[1735101132824,20.0,200.15,200.08,9.61464158]
[1735101134057,9.61464158,200.14,200.07,23.776884]
[1735101134849,9.61464158,200.14,200.04,7.83982331]
[1735101135058,9.61464158,200.12,200.05,31.61670731]
[1735101135560,20.0,200.15,200.05,31.61670731]
[1735101135755,9.61464158,200.11,200.04,7.83982331]
[1735101135959,9.61464158,200.11,200.04,17.45446489]
[1735101136655,9.61464158,200.11,200.04,9.61464158]
[1735101136857,9.61464158,200.13,200.05,23.776884]
[1735101138059,9.61464158,200.13,200.04,9.61464158]
[1735101139045,9.61464158,200.11,200.03,1.5982]
[1735101140472,9.61464158,200.07,200.03,1.5982]
[1735101143968,9.61464158,200.06,199.99,7.83982331]
[1735101144149,9.61464158,200.05,199.99,7.83982331]
[1735101144665,9.61464158,200.04,199.98,7.83982331]
[1735101144969,9.61464158,200.03,199.98,7.83982331]
[1735101145566,9.61464158,200.01,199.98,7.83982331]
[1735101145767,9.61464158,200.0,199.96,7.83982331]
[1735101146142,9.61464158,199.98,199.96,7.83982331]
[1735101146491,9.61464158,199.98,199.93,7.83982331]
[1735101146668,9.61464158,199.99,199.93,7.83982331]
[1735101147059,9.61464158,199.98,199.93,7.83982331]
[1735101147357,9.61464158,199.98,199.91,17.45446489]
[1735101148175,9.61464158,199.98,199.91,9.61464158]
[1735101149355,9.61464158,199.96,199.9,1.6405]
[1735101149976,20.0,200.01,199.92,9.61464158]
[1735101150178,29.61464158,200.01,199.93,9.61464158]
[1735101150374,1.6328,200.09,199.96,9.61464158]
[1735101150669,9.61464158,200.1,200.03,9.61464158]
[1735101150869,9.61464158,200.11,200.03,9.61464158]
[1735101151063,9.61464158,200.11,200.04,9.61464158]
[1735101151450,9.61464158,200.12,200.05,9.61464158]
[1735101151658,9.9928,200.15,200.05,9.61464158]
[1735101151857,9.61464158,200.12,200.05,9.61464158]
[1735101152052,9.61464158,200.1,200.03,9.61464158]
[1735101152256,9.61464158,200.08,200.0,33.39152558]
[1735101152479,9.61464158,200.07,199.99,1.6405]
[1735101152773,9.61464158,200.07,199.99,11.25514158]
[1735101153172,9.61464158,200.06,199.99,11.25514158]
[1735101153473,9.61464158,200.05,199.99,1.6405]
[1735101153782,9.61464158,200.04,199.99,1.6405]
[1735101154349,9.61464158,200.04,199.97,9.61464158]
[1735101154750,9.61464158,200.04,199.96,29.61464158]
[1735101158679,9.61464158,200.04,199.96,9.61464158]
[1735101159266,9.61464158,200.03,199.96,9.61464158]
[1735101161873,9.61464158,200.02,199.94,11.25514158]
[1735101162078,9.61464158,200.01,199.94,11.25514158]
[1735101162877,9.61464158,199.99,199.94,1.6405]
[1735101163186,9.61464158,199.98,199.94,1.6405]
[1735101164489,9.61464158,199.99,199.94,1.6405]
[1735101165789,9.5544676,199.99,199.94,1.6405]
[1735101167684,9.5544676,199.99,199.91,9.61464158]
[1735101168367,9.61464158,199.98,199.91,9.61464158]
[1735101170072,20.0,200.01,199.91,9.61464158]
[1735101170265,20.0,200.01,199.94,9.61464158]
[1735101170471,29.61464158,200.01,199.94,9.61464158]
[1735101172889,29.61464158,200.01,199.93,9.61464158]
[1735101173295,9.61464158,199.99,199.92,9.61464158]
[1735101173582,20.0,200.01,199.92,9.61464158]
[1735101173781,9.61464158,199.99,199.92,9.61464158]
[1735101175794,9.61464158,199.99,199.89,15.41972331]
[1735101175795,9.61464158,199.96,199.89,15.41972331]
[1735101175977,9.61464158,199.93,199.89,7.5799]
[1735101176695,9.61464158,199.91,199.88,7.83982331]
[1735101176911,9.61464158,199.91,199.85,7.83982331]
[1735101177473,9.61464158,199.9,199.85,7.83982331]
[1735101177994,9.61464158,199.9,199.84,8.0307]
[1735101178289,9.61464158,199.86,199.82,7.83982331]
[1735101178595,9.61464158,199.84,199.82,7.83982331]
[1735101179103,9.61464158,199.84,199.79,9.41892331]
[1735101179400,20.0,199.93,199.79,9.41892331]
[1735101179706,9.61464158,199.84,199.79,9.41892331]
[1735101180113,9.61464158,199.84,199.79,1.5791]
[1735101181475,9.61464158,199.83,199.79,1.5791]
[1735101182501,9.61464158,199.83,199.75,9.61464158]
[1735101183216,9.61464158,199.85,199.77,9.61464158]
[1735101183417,9.61464158,199.84,199.77,9.61464158]
[1735101183583,9.61464158,199.83,199.76,9.61464158]
[1735101183983,9.61464158,199.84,199.76,9.61464158]
[1735101184379,9.61464158,199.84,199.77,9.61464158]
[1735101185723,9.61464158,199.82,199.75,9.61464158]
[1735101186080,9.61464158,199.83,199.75,9.61464158]
[1735101187285,20.0,199.88,199.8,9.61464158]
[1735101187479,9.61464158,199.91,199.83,9.61464158]
[1735101187807,7.8886,200.01,199.87,9.61464158]
[1735101188118,9.61464158,199.94,199.87,9.61464158]
[1735101188616,10.0,200.0,199.87,9.61464158]
[1735101188829,9.61464158,199.94,199.87,9.61464158]
[1735101189389,10.0,200.0,199.86,9.61464158]
[1735101189609,20.0,199.97,199.86,9.61464158]
[1735101189809,9.61464158,199.94,199.86,9.61464158]
[1735101193915,9.61464158,199.94,199.87,9.61464158]
[1735101194113,9.9985,200.03,199.91,9.61464158]
[1735101194292,9.61464158,200.0,199.93,9.61464158]
[1735101194711,9.61464158,199.99,199.92,9.61464158]
[1735101194995,9.61464158,199.99,199.91,33.39152558]
[1735101196009,9.61464158,199.98,199.91,33.39152558]
[1735101198227,9.61464158,199.97,199.91,23.776884]
[1735101201425,9.61464158,199.98,199.91,23.776884]
[1735101201801,9.61464158,199.97,199.91,23.776884]
[1735101204427,9.61464158,199.96,199.9,0.75011205]
[1735101204630,9.61464158,199.94,199.89,1.5668]
[1735101204827,9.61464158,199.93,199.89,1.5668]
[1735101205011,9.61464158,199.92,199.84,11.27324158]
[1735101205316,9.61464158,199.91,199.84,1.6586]
[1735101205719,9.61464158,199.89,199.84,1.6586]
[1735101207230,9.61464158,199.87,199.79,1.6586]
[1735101207433,9.61464158,199.86,199.79,11.27324158]
[1735101207653,9.61464158,199.85,199.79,1.6586]
[1735101209422,9.61464158,199.84,199.76,9.61464158]
[1735101209739,9.61464158,199.83,199.75,9.61464158]
[1735101210157,9.61464158,199.82,199.74,1.6586]
[1735101210332,9.61464158,199.82,199.74,11.27324158]
[1735101210752,9.61464158,199.81,199.74,1.6586]
[1735101210929,21.5669,199.9,199.8,9.61464158]
[1735101211258,9.61464158,199.88,199.8,9.61464158]
[1735101211460,9.61464158,199.89,199.82,9.61464158]
[1735101212121,9.61464158,199.9,199.82,9.61464158]
[1735101212317,9.61464158,199.92,199.84,9.61464158]
[1735101212522,1.5669,199.95,199.87,23.776884]
[1735101212748,9.61464158,199.93,199.85,23.776884]
[1735101212953,9.61464158,199.9,199.84,23.776884]
[1735101213134,9.61464158,199.88,199.83,1.6586]
[1735101214150,0.12549,199.94,199.83,1.6586]
[1735101214329,15.04291602,199.89,199.83,1.6586]
[1735101216947,15.04291602,199.91,199.84,23.776884]
[1735101217158,15.04291602,199.93,199.85,15.04291602]
[1735101217362,15.04291602,199.93,199.86,23.776884]
[1735101218254,15.04291602,199.93,199.87,15.79322289]
[1735101218558,15.04291602,199.93,199.87,15.04291602]
[1735101218933,15.04291602,199.95,199.87,15.04291602]
[1735101223358,15.04291602,199.93,199.85,15.79317833]
[1735101223543,15.04291602,199.93,199.85,15.04291602]
[1735101226669,6.2411,199.98,199.84,12.51]
[1735101226670,15.04291602,199.91,199.84,12.51]
[1735101226846,15.04291602,199.92,199.84,27.55291602]
[1735101227165,15.04291602,199.93,199.85,15.04291602]
[1735101227346,15.04291602,199.92,199.84,27.55291602]
[1735101227747,15.04291602,199.92,199.86,15.04291602]
[1735101229654,15.04291602,199.94,199.87,15.04291602]
[1735101229857,15.04291602,199.96,199.87,15.04291602]
[1735101230043,15.04291602,199.94,199.87,15.04291602]
[1735101230244,15.04291602,199.93,199.85,15.04291602]
[1735101230962,15.04291602,199.89,199.83,1.6586]
[1735101231162,15.04291602,199.86,199.79,22.88273933]
[1735101231340,15.04291602,199.84,199.79,7.83982331]
[1735101231743,15.04291602,199.84,199.78,1.5275]
[1735101232648,15.04291602,199.85,199.78,1.5275]
[1735101234668,15.04291602,199.87,199.8,15.04291602]
[1735101235372,15.04291602,199.88,199.81,15.04291602]
[1735101238767,15.04291602,199.87,199.8,15.04291602]
[1735101239373,15.04291602,199.87,199.79,15.79348268]
[1735101239575,15.04291602,199.86,199.79,15.04291602]
[1735101239877,15.04291602,199.86,199.78,16.57041602]
[1735101240182,9.63041822,199.86,199.78,11.15791822]
[1735101240357,0.12549,199.91,199.78,11.15791822]
[1735101240358,9.63041822,199.84,199.78,1.5275]
[1735101240760,9.63041822,199.82,199.78,1.5275]
[1735101241476,9.63041822,199.83,199.78,1.5275]
[1735101241852,9.63041822,199.86,199.79,9.63041822]
[1735101242058,29.63041822,199.87,199.79,9.63041822]
[1735101242266,35.04597367,199.87,199.79,15.04597367]
[1735101243273,15.04597367,199.87,199.79,15.04597367]
[1735101243476,15.04597367,199.87,199.8,15.04597367]
[1735101244158,15.04597367,199.88,199.81,15.04597367]
[1735101244365,15.04597367,199.87,199.79,15.04597367]
[1735101244678,15.04597367,199.88,199.8,15.04597367]
[1735101245177,15.04597367,199.88,199.81,15.04597367]
[1735101245379,15.04597367,199.89,199.82,15.04597367]
[1735101245567,15.04597367,199.91,199.84,15.04597367]
[1735101245770,15.04597367,199.89,199.82,15.04597367]
[1735101246077,15.04597367,199.87,199.79,15.04597367]
[1735101246380,15.04597367,199.87,199.8,15.04597367]
[1735101247390,15.04597367,199.9,199.83,15.04597367]
[1735101247684,15.04597367,199.91,199.83,15.04597367]
[1735101247881,6.5559,199.94,199.82,15.04597367]
[1735101247882,15.04597367,199.89,199.82,15.04597367]
[1735101248882,15.04597367,199.88,199.8,15.04597367]
[1735101249359,15.04597367,199.87,199.8,15.04597367]
[1735101249781,15.04597367,199.87,199.78,14.79119124]
[1735101250002,15.04597367,199.87,199.79,15.04597367]
[1735101250160,15.04597367,199.87,199.8,15.04597367]
[1735101250356,15.04597367,199.89,199.82,15.04597367]
[1735101250659,15.04597367,199.91,199.8,13.26253675]
[1735101250885,15.04597367,199.88,199.81,15.04597367]
[1735101251789,15.04597367,199.9,199.81,15.04597367]
[1735101253957,6.5559,199.94,199.83,15.04597367]
[1735101254179,15.04597367,199.94,199.85,15.04597367]
[1735101254764,15.04597367,199.92,199.83,15.04597367]
[1735101257590,15.04597367,199.9,199.81,22.88579698]
[1735101257977,15.04597367,199.88,199.81,15.04597367]